[Event "Early-Titled-Tuesday-Blitz-September-05-2023"]
[Site "Chess.com"]
[Date "2023.09.05"]
[Round "8"]
[White "santosalberto1987"]
[Black "03revilo"]
[Result "0-1"]
[WhiteElo "2546"]
[BlackElo "2457"]
[TimeControl "180+1"]
[EndTime "9:22:59 PDT"]
[Termination "03revilo won by resignation"]

1. e4 {[%clk 0:03:00.9]} 1... c6 {[%clk 0:02:59.6]} 2. c4 {[%clk 0:03:00.1]}
2... d5 {[%clk 0:03:00.5]} 3. exd5 {[%clk 0:03:00.5]} 3... cxd5 {[%clk
0:03:01.4]} 4. cxd5 {[%clk 0:03:01]} 4... Nf6 {[%clk 0:03:02.3]} 5. Qa4+ {[%clk
0:03:00.9]} 5... Nbd7 {[%clk 0:03:02.7]} 6. Bc4 {[%clk 0:02:59.9]} 6... g6
{[%clk 0:03:02.1]} 7. Nc3 {[%clk 0:02:59.8]} 7... Bg7 {[%clk 0:03:02.6]} 8. d3
{[%clk 0:03:00.2]} 8... O-O {[%clk 0:03:02.8]} 9. Nf3 {[%clk 0:03:00.6]} 9...
Nb6 {[%clk 0:03:01]} 10. Qb3 {[%clk 0:03:00.1]} 10... Bf5 {[%clk 0:02:49.9]} 11.
O-O {[%clk 0:02:57.6]} 11... Nfd7 {[%clk 0:02:47.9]} 12. Be3 {[%clk 0:02:51.3]}
12... Rc8 {[%clk 0:02:43]} 13. Nd4 {[%clk 0:02:51.3]} 13... Nc5 {[%clk
0:02:40.6]} 14. Qd1 {[%clk 0:02:50.8]} 14... Nxc4 {[%clk 0:02:36.5]} 15. Nxf5
{[%clk 0:02:48.6]} 15... Nxb2 {[%clk 0:02:31.3]} 16. Qc2 {[%clk 0:02:40.4]}
16... gxf5 {[%clk 0:02:27.2]} 17. Qxb2 {[%clk 0:02:37]} 17... Nxd3 {[%clk
0:02:26.7]} 18. Qxb7 {[%clk 0:02:32.9]} 18... Rxc3 {[%clk 0:02:22]} 19. Qxa7
{[%clk 0:02:32.7]} 19... f4 {[%clk 0:01:52.1]} 20. Bb6 {[%clk 0:02:29.8]} 20...
Qxd5 {[%clk 0:01:36.4]} 21. Qxe7 {[%clk 0:02:29]} 21... Rc6 {[%clk 0:01:30.6]}
22. Rab1 {[%clk 0:02:25.4]} 22... Rg6 {[%clk 0:01:23.8]} 23. f3 {[%clk
0:02:24.4]} 23... Bd4+ {[%clk 0:01:21.1]} 24. Bxd4 {[%clk 0:02:23]} 24... Qxd4+
{[%clk 0:01:22]} 25. Kh1 {[%clk 0:02:23.3]} 25... Nf2+ {[%clk 0:01:22.2]} 26.
Rxf2 {[%clk 0:02:20.5]} 26... Qxf2 {[%clk 0:01:23]} 27. Rg1 {[%clk 0:02:20.2]}
27... Rc8 {[%clk 0:01:14.8]} 0-1

[Event "Early-Titled-Tuesday-Blitz-September-05-2023"]
[Site "Chess.com"]
[Date "2023.09.05"]
[Round "8"]
[White "miraitrunks"]
[Black "campochess"]
[Result "1-0"]
[WhiteElo "2037"]
[BlackElo "2172"]
[TimeControl "180+1"]
[EndTime "9:23:11 PDT"]
[Termination "miraitrunks won by resignation"]

1. e4 {[%clk 0:02:59.4]} 1... c5 {[%clk 0:03:00.1]} 2. Nc3 {[%clk 0:02:59.6]}
2... Nc6 {[%clk 0:03:00.1]} 3. Nge2 {[%clk 0:03:00.5]} 3... g6 {[%clk 0:03:00]}
4. d3 {[%clk 0:03:01]} 4... Bg7 {[%clk 0:03:00]} 5. Be3 {[%clk 0:03:01.6]} 5...
d6 {[%clk 0:02:59.9]} 6. g3 {[%clk 0:03:01.9]} 6... Nf6 {[%clk 0:02:59.8]} 7.
Bg2 {[%clk 0:03:02.2]} 7... O-O {[%clk 0:02:58.9]} 8. h3 {[%clk 0:03:02.1]} 8...
b5 {[%clk 0:02:57.7]} 9. e5 {[%clk 0:02:58.4]} 9... b4 {[%clk 0:02:53.3]} 10.
Bxc6 {[%clk 0:02:56.6]} 10... bxc3 {[%clk 0:02:53.1]} 11. Bxa8 {[%clk
0:02:56.5]} 11... cxb2 {[%clk 0:02:53.2]} 12. Rb1 {[%clk 0:02:56.5]} 12... dxe5
{[%clk 0:02:51.2]} 13. Bg2 {[%clk 0:02:55.2]} 13... Qa5+ {[%clk 0:02:40.7]} 14.
Bd2 {[%clk 0:02:52.2]} 14... Qxa2 {[%clk 0:02:40.7]} 15. Bc3 {[%clk 0:02:51.9]}
15... e4 {[%clk 0:02:36.8]} 16. Bxb2 {[%clk 0:02:36.8]} 16... exd3 {[%clk
0:02:35.4]} 17. cxd3 {[%clk 0:02:29.1]} 17... Rd8 {[%clk 0:02:29.5]} 18. O-O
{[%clk 0:02:28.4]} 18... Qa6 {[%clk 0:02:28.3]} 19. Nf4 {[%clk 0:02:23.9]} 19...
Bf5 {[%clk 0:02:27.1]} 20. Ra1 {[%clk 0:02:17.5]} 20... Qb6 {[%clk 0:02:22.2]}
21. Bxf6 {[%clk 0:02:16.6]} 21... exf6 {[%clk 0:02:16.1]} 22. Rb1 {[%clk
0:02:08]} 22... Qd6 {[%clk 0:02:12.9]} 23. Qb3 {[%clk 0:02:05.7]} 23... Bxd3
{[%clk 0:02:06.9]} 24. Nxd3 {[%clk 0:02:00.4]} 24... Qxd3 {[%clk 0:02:05.8]} 25.
Rfd1 {[%clk 0:02:00.7]} 25... Qxb1 {[%clk 0:01:45]} 26. Qxb1 {[%clk 0:01:58.6]}
26... Re8 {[%clk 0:01:42.8]} 27. Rd7 {[%clk 0:01:57.6]} 27... f5 {[%clk
0:01:41.1]} 28. Qb3 {[%clk 0:01:57]} 28... Rf8 {[%clk 0:01:40.1]} 29. Rxf7
{[%clk 0:01:54.7]} 29... Rxf7 {[%clk 0:01:35.6]} 30. Bd5 {[%clk 0:01:54.9]} 1-0

[Event "Early-Titled-Tuesday-Blitz-September-05-2023"]
[Site "Chess.com"]
[Date "2023.09.05"]
[Round "8"]
[White "guillembaches"]
[Black "chess123456s"]
[Result "1/2-1/2"]
[WhiteElo "2529"]
[BlackElo "2659"]
[TimeControl "180+1"]
[EndTime "9:23:22 PDT"]
[Termination "Game drawn by agreement"]

1. e4 {[%clk 0:03:00.9]} 1... e5 {[%clk 0:02:59.6]} 2. Nf3 {[%clk 0:03:01.2]}
2... Nc6 {[%clk 0:02:59.8]} 3. Nc3 {[%clk 0:03:01.9]} 3... Nf6 {[%clk
0:02:59.8]} 4. d4 {[%clk 0:03:02.5]} 4... exd4 {[%clk 0:03:00]} 5. Nxd4 {[%clk
0:03:03.2]} 5... Bb4 {[%clk 0:03:00.2]} 6. Nxc6 {[%clk 0:03:03.5]} 6... bxc6
{[%clk 0:03:01.1]} 7. Bd3 {[%clk 0:03:03.9]} 7... d5 {[%clk 0:03:01.8]} 8. Bd2
{[%clk 0:03:04.3]} 8... O-O {[%clk 0:03:01.5]} 9. O-O {[%clk 0:03:04.3]} 9...
Rb8 {[%clk 0:03:01.2]} 10. Re1 {[%clk 0:03:03.4]} 10... Re8 {[%clk 0:02:54.2]}
11. a3 {[%clk 0:02:58.1]} 11... Bc5 {[%clk 0:02:43.8]} 12. h3 {[%clk 0:02:45.2]}
12... Be6 {[%clk 0:02:28.1]} 13. b4 {[%clk 0:02:41.3]} 13... Bd4 {[%clk
0:02:26.1]} 14. Rb1 {[%clk 0:02:35.2]} 14... Bxc3 {[%clk 0:02:24.2]} 15. Bxc3
{[%clk 0:02:33.9]} 15... Nxe4 {[%clk 0:02:24.4]} 16. Bxe4 {[%clk 0:02:27.2]}
16... dxe4 {[%clk 0:02:25.3]} 17. Rxe4 {[%clk 0:02:17.9]} 17... Bf5 {[%clk
0:02:14.7]} 18. Rxe8+ {[%clk 0:02:11.3]} 18... Qxe8 {[%clk 0:02:14.6]} 19. Qd4
{[%clk 0:02:09.8]} 19... f6 {[%clk 0:02:12.5]} 20. Re1 {[%clk 0:02:03.5]} 20...
Qd7 {[%clk 0:02:07.1]} 21. Qxa7 {[%clk 0:01:55.4]} 21... Rd8 {[%clk 0:01:58]}
22. Qc5 {[%clk 0:01:45.6]} 22... Qd5 {[%clk 0:01:30.6]} 23. Qxd5+ {[%clk
0:01:36.1]} 23... cxd5 {[%clk 0:01:30.2]} 24. Bd4 {[%clk 0:01:33.5]} 1/2-1/2

[Event "Early-Titled-Tuesday-Blitz-September-05-2023"]
[Site "Chess.com"]
[Date "2023.09.05"]
[Round "8"]
[White "WiktoriaPOL"]
[Black "Gogolev_Artemy"]
[Result "1-0"]
[WhiteElo "2295"]
[BlackElo "2401"]
[TimeControl "180+1"]
[EndTime "9:23:49 PDT"]
[Termination "WiktoriaPOL won by resignation"]

1. c4 {[%clk 0:02:56.8]} 1... Nf6 {[%clk 0:02:59.3]} 2. Nc3 {[%clk 0:02:53.9]}
2... c5 {[%clk 0:02:58.9]} 3. Nf3 {[%clk 0:02:52.9]} 3... Nc6 {[%clk 0:02:58.9]}
4. g3 {[%clk 0:02:52.9]} 4... d5 {[%clk 0:02:58.1]} 5. cxd5 {[%clk 0:02:51.9]}
5... Nxd5 {[%clk 0:02:59]} 6. Bg2 {[%clk 0:02:45.3]} 6... g6 {[%clk 0:02:58.5]}
7. d4 {[%clk 0:02:42.1]} 7... Bg7 {[%clk 0:02:55.5]} 8. Nxd5 {[%clk 0:02:27.1]}
8... Qxd5 {[%clk 0:02:54.9]} 9. dxc5 {[%clk 0:02:22]} 9... Qxc5 {[%clk
0:02:50.1]} 10. O-O {[%clk 0:02:20.1]} 10... O-O {[%clk 0:02:49.9]} 11. Be3
{[%clk 0:02:15]} 11... Qh5 {[%clk 0:02:50.1]} 12. Rb1 {[%clk 0:01:58.6]} 12...
Bf5 {[%clk 0:02:47.5]} 13. Rc1 {[%clk 0:01:50.3]} 13... Bxb2 {[%clk 0:02:29]}
14. Rc5 {[%clk 0:01:49.3]} 14... Qg4 {[%clk 0:02:07.9]} 15. Qb3 {[%clk
0:01:44.5]} 15... Bf6 {[%clk 0:01:45.5]} 16. Qxb7 {[%clk 0:01:33]} 16... Nd4
{[%clk 0:01:19.1]} 17. Nxd4 {[%clk 0:01:27.1]} 17... Bxd4 {[%clk 0:01:19.5]} 18.
h3 {[%clk 0:01:24.3]} 18... Qe4 {[%clk 0:00:56.5]} 1-0

[Event "Early-Titled-Tuesday-Blitz-September-05-2023"]
[Site "Chess.com"]
[Date "2023.09.05"]
[Round "8"]
[White "Fleetw00dMac"]
[Black "KVAIDAN"]
[Result "1-0"]
[WhiteElo "2464"]
[BlackElo "2237"]
[TimeControl "180+1"]
[EndTime "9:23:58 PDT"]
[Termination "Fleetw00dMac won by resignation"]

1. d4 {[%clk 0:03:00.9]} 1... e6 {[%clk 0:02:57.9]} 2. c4 {[%clk 0:03:00.9]}
2... f5 {[%clk 0:02:58]} 3. Nc3 {[%clk 0:02:54.8]} 3... Nf6 {[%clk 0:02:58.5]}
4. a3 {[%clk 0:02:54.6]} 4... Be7 {[%clk 0:02:56.7]} 5. Bf4 {[%clk 0:02:50.6]}
5... O-O {[%clk 0:02:57.1]} 6. e3 {[%clk 0:02:50.5]} 6... d6 {[%clk 0:02:57.7]}
7. h3 {[%clk 0:02:46.5]} 7... Nbd7 {[%clk 0:02:57.9]} 8. Nf3 {[%clk 0:02:46.2]}
8... c6 {[%clk 0:02:57]} 9. Ng5 {[%clk 0:02:25.5]} 9... Nb6 {[%clk 0:02:51.5]}
10. c5 {[%clk 0:02:23.8]} 10... dxc5 {[%clk 0:02:46.6]} 11. dxc5 {[%clk
0:02:21.6]} 11... Bxc5 {[%clk 0:02:44.5]} 12. b4 {[%clk 0:02:10.3]} 12... Be7
{[%clk 0:02:41.3]} 13. Nf3 {[%clk 0:02:07.3]} 13... Nfd5 {[%clk 0:02:37.1]} 14.
Be5 {[%clk 0:02:07.3]} 14... Bf6 {[%clk 0:02:34.8]} 15. Qb3 {[%clk 0:02:04]}
15... Nd7 {[%clk 0:02:26.9]} 16. Bxf6 {[%clk 0:02:02.6]} 16... Qxf6 {[%clk
0:02:26.8]} 17. Rc1 {[%clk 0:02:02.3]} 17... a5 {[%clk 0:02:23.1]} 18. b5 {[%clk
0:01:59.6]} 18... Nc5 {[%clk 0:02:19.9]} 19. Qc2 {[%clk 0:01:58.6]} 19... a4
{[%clk 0:02:15.8]} 20. Nxd5 {[%clk 0:01:58.3]} 20... cxd5 {[%clk 0:02:13.5]} 21.
Qxc5 {[%clk 0:01:58.3]} 21... Bd7 {[%clk 0:02:13]} 22. Qd4 {[%clk 0:01:57.8]}
22... Qe7 {[%clk 0:02:11]} 23. Qb4 {[%clk 0:01:56.3]} 23... Qf6 {[%clk
0:02:08.4]} 24. Be2 {[%clk 0:01:54.7]} 24... e5 {[%clk 0:02:05.2]} 25. Rc7
{[%clk 0:01:48.1]} 25... Be6 {[%clk 0:02:02.5]} 26. O-O {[%clk 0:01:47.5]} 26...
g5 {[%clk 0:01:54.4]} 27. Qd6 {[%clk 0:01:44.6]} 27... e4 {[%clk 0:01:47.9]} 28.
Nd4 {[%clk 0:01:41.8]} 28... Rae8 {[%clk 0:01:47.9]} 29. Bh5 {[%clk 0:01:39.7]}
29... f4 {[%clk 0:01:16.1]} 30. Bxe8 {[%clk 0:01:36.8]} 30... f3 {[%clk
0:01:14.1]} 31. Qxe6+ {[%clk 0:01:35.1]} 31... Qxe6 {[%clk 0:01:14.2]} 32. Nxe6
{[%clk 0:01:35.1]} 32... Rxe8 {[%clk 0:01:14.9]} 33. Nxg5 {[%clk 0:01:32.9]} 1-0

[Event "Early-Titled-Tuesday-Blitz-September-05-2023"]
[Site "Chess.com"]
[Date "2023.09.05"]
[Round "8"]
[White "PetrolulSah"]
[Black "suyu28"]
[Result "0-1"]
[WhiteElo "2160"]
[BlackElo "2715"]
[TimeControl "180+1"]
[EndTime "9:24:00 PDT"]
[Termination "suyu28 won by resignation"]

1. d4 {[%clk 0:03:00.9]} 1... Nf6 {[%clk 0:02:59.7]} 2. c4 {[%clk 0:03:00.9]}
2... g6 {[%clk 0:03:00.2]} 3. Nc3 {[%clk 0:03:01]} 3... d5 {[%clk 0:03:00.8]} 4.
Nf3 {[%clk 0:02:56.7]} 4... Bg7 {[%clk 0:02:58.9]} 5. e3 {[%clk 0:02:56.2]} 5...
O-O {[%clk 0:02:59.1]} 6. Qb3 {[%clk 0:02:54.4]} 6... e6 {[%clk 0:02:48.3]} 7.
Be2 {[%clk 0:02:48.8]} 7... Nc6 {[%clk 0:02:44.5]} 8. cxd5 {[%clk 0:02:45.9]}
8... exd5 {[%clk 0:02:44.1]} 9. Bd2 {[%clk 0:02:46.5]} 9... Ne7 {[%clk 0:02:43]}
10. Ne5 {[%clk 0:02:43.8]} 10... c6 {[%clk 0:02:43]} 11. O-O {[%clk 0:02:42.9]}
11... Nf5 {[%clk 0:02:43.3]} 12. f4 {[%clk 0:02:40.4]} 12... Nd6 {[%clk
0:02:43.4]} 13. Bd3 {[%clk 0:02:37.5]} 13... Re8 {[%clk 0:02:42.9]} 14. Rae1
{[%clk 0:02:36.3]} 14... Qe7 {[%clk 0:02:39.7]} 15. h3 {[%clk 0:02:36.2]} 15...
Bf5 {[%clk 0:02:39.4]} 16. Qc2 {[%clk 0:02:34.4]} 16... Bxd3 {[%clk 0:02:39]}
17. Qxd3 {[%clk 0:02:35.3]} 17... Nfe4 {[%clk 0:02:39.2]} 18. Kh2 {[%clk
0:02:28.8]} 18... f6 {[%clk 0:02:36.2]} 19. Nf3 {[%clk 0:02:25.7]} 19... Qd7
{[%clk 0:02:36.7]} 20. g4 {[%clk 0:02:22.6]} 20... h6 {[%clk 0:02:30.6]} 21. Re2
{[%clk 0:02:22.6]} 21... g5 {[%clk 0:02:29.9]} 22. f5 {[%clk 0:02:17]} 22...
Nxc3 {[%clk 0:02:26.2]} 23. Bxc3 {[%clk 0:02:12.9]} 23... Ne4 {[%clk 0:02:26.2]}
24. Be1 {[%clk 0:02:12.9]} 24... Bf8 {[%clk 0:02:26.4]} 25. Rg1 {[%clk
0:02:11.3]} 25... Bd6+ {[%clk 0:02:26.6]} 26. Kh1 {[%clk 0:02:11.6]} 26... h5
{[%clk 0:02:25.6]} 27. Nd2 {[%clk 0:02:09.9]} 27... hxg4 {[%clk 0:02:25.1]} 28.
hxg4 {[%clk 0:02:07.5]} 28... Qh7+ {[%clk 0:02:17.4]} 29. Kg2 {[%clk 0:02:02.9]}
29... Qh2+ {[%clk 0:02:17.5]} 30. Kf1 {[%clk 0:02:01.4]} 30... Qh3+ {[%clk
0:02:18.2]} 31. Reg2 {[%clk 0:01:59.7]} 31... Nxd2+ {[%clk 0:02:14.9]} 32. Bxd2
{[%clk 0:01:56.8]} 32... Re4 {[%clk 0:02:15.2]} 33. Qe2 {[%clk 0:01:56.1]} 33...
Rae8 {[%clk 0:02:14.1]} 34. Qf2 {[%clk 0:01:55.2]} 34... Rxg4 {[%clk 0:02:11.2]}
35. a3 {[%clk 0:01:39.5]} 35... Ree4 {[%clk 0:02:08.7]} 36. b4 {[%clk
0:01:38.2]} 36... Rxg2 {[%clk 0:02:08]} 37. Rxg2 {[%clk 0:01:35]} 37... Rg4
{[%clk 0:02:08.1]} 38. Kg1 {[%clk 0:01:30.1]} 38... Bg3 {[%clk 0:02:00.9]} 39.
Qe2 {[%clk 0:01:29.4]} 39... Bh2+ {[%clk 0:01:55.5]} 40. Kf1 {[%clk 0:01:27.8]}
40... Rg3 {[%clk 0:01:53.5]} 41. Qf2 {[%clk 0:01:23.7]} 41... Rf3 {[%clk
0:01:52]} 0-1

[Event "Early-Titled-Tuesday-Blitz-September-05-2023"]
[Site "Chess.com"]
[Date "2023.09.05"]
[Round "8"]
[White "fastestmindalive"]
[Black "vladgoncharov"]
[Result "1-0"]
[WhiteElo "2715"]
[BlackElo "2557"]
[TimeControl "180+1"]
[EndTime "9:24:05 PDT"]
[Termination "fastestmindalive won by resignation"]

1. e4 {[%clk 0:03:00.9]} 1... e6 {[%clk 0:02:52.8]} 2. d4 {[%clk 0:02:56.8]}
2... d5 {[%clk 0:02:53]} 3. Nc3 {[%clk 0:02:56.7]} 3... Bb4 {[%clk 0:02:52.4]}
4. a3 {[%clk 0:02:56.8]} 4... Bxc3+ {[%clk 0:02:47.7]} 5. bxc3 {[%clk
0:02:57.7]} 5... dxe4 {[%clk 0:02:48]} 6. Qg4 {[%clk 0:02:56.9]} 6... Nf6 {[%clk
0:02:47.8]} 7. Qxg7 {[%clk 0:02:56.3]} 7... Rg8 {[%clk 0:02:48.1]} 8. Qh6 {[%clk
0:02:56.4]} 8... Rg6 {[%clk 0:02:47.3]} 9. Qh4 {[%clk 0:02:56.2]} 9... c5 {[%clk
0:02:46.6]} 10. Ne2 {[%clk 0:02:55.4]} 10... Nbd7 {[%clk 0:02:40.9]} 11. Ng3
{[%clk 0:02:51.7]} 11... Qa5 {[%clk 0:02:33.7]} 12. Bd2 {[%clk 0:02:50.6]} 12...
Qa4 {[%clk 0:02:33.6]} 13. Be2 {[%clk 0:02:49.1]} 13... Qxc2 {[%clk 0:02:26.3]}
14. Rd1 {[%clk 0:02:48.4]} 14... b6 {[%clk 0:02:17.6]} 15. O-O {[%clk
0:02:46.8]} 15... Bb7 {[%clk 0:02:17.2]} 16. dxc5 {[%clk 0:02:38.3]} 16... O-O-O
{[%clk 0:01:50.1]} 17. cxb6 {[%clk 0:02:18.3]} 17... axb6 {[%clk 0:01:49.6]} 18.
Bb5 {[%clk 0:01:51.7]} 18... Ne5 {[%clk 0:01:23]} 19. Bf4 {[%clk 0:01:20.6]}
19... Rxd1 {[%clk 0:01:18.7]} 20. Bxe5 {[%clk 0:01:20.2]} 20... e3 {[%clk
0:01:13.4]} 21. Qc4+ {[%clk 0:01:18.6]} 1-0

[Event "Early-Titled-Tuesday-Blitz-September-05-2023"]
[Site "Chess.com"]
[Date "2023.09.05"]
[Round "8"]
[White "PavelChernomordik"]
[Black "Qvalda"]
[Result "0-1"]
[WhiteElo "2485"]
[BlackElo "2389"]
[TimeControl "180+1"]
[EndTime "9:24:19 PDT"]
[Termination "Qvalda won on time"]

1. e4 {[%clk 0:02:57.6]} 1... e6 {[%clk 0:02:55.9]} 2. Nc3 {[%clk 0:02:56.5]}
2... d5 {[%clk 0:02:56.4]} 3. d4 {[%clk 0:02:54.5]} 3... Be7 {[%clk 0:02:53.5]}
4. Nf3 {[%clk 0:02:47.4]} 4... Nf6 {[%clk 0:02:52.6]} 5. e5 {[%clk 0:02:45.1]}
5... Nfd7 {[%clk 0:02:51.9]} 6. Ne2 {[%clk 0:02:41]} 6... c5 {[%clk 0:02:51.2]}
7. c3 {[%clk 0:02:39.3]} 7... Qa5 {[%clk 0:02:51.8]} 8. Bd2 {[%clk 0:02:33.3]}
8... cxd4 {[%clk 0:02:42.7]} 9. cxd4 {[%clk 0:02:31.6]} 9... Qb6 {[%clk
0:02:42.9]} 10. Qc1 {[%clk 0:02:21.6]} 10... Nc6 {[%clk 0:02:41.6]} 11. Bc3
{[%clk 0:02:14.5]} 11... O-O {[%clk 0:02:39.3]} 12. Nf4 {[%clk 0:02:13.1]} 12...
f6 {[%clk 0:01:50.7]} 13. Nxe6 {[%clk 0:02:00.5]} 13... Ndxe5 {[%clk 0:01:50.6]}
14. Nxf8 {[%clk 0:01:53.1]} 14... Nxf3+ {[%clk 0:01:50.5]} 15. gxf3 {[%clk
0:01:52.4]} 15... Bxf8 {[%clk 0:01:50.4]} 16. Qd2 {[%clk 0:01:40]} 16... Bf5
{[%clk 0:01:46.9]} 0-1

[Event "Early-Titled-Tuesday-Blitz-September-05-2023"]
[Site "Chess.com"]
[Date "2023.09.05"]
[Round "8"]
[White "Firouzja2003"]
[Black "AlexPapasimakopoulos"]
[Result "1-0"]
[WhiteElo "3113"]
[BlackElo "2742"]
[TimeControl "180+1"]
[EndTime "9:24:32 PDT"]
[Termination "Firouzja2003 won by checkmate"]

1. d4 {[%clk 0:03:00.9]} 1... d5 {[%clk 0:02:58.8]} 2. Nc3 {[%clk 0:03:00.3]}
2... e6 {[%clk 0:02:57.6]} 3. e4 {[%clk 0:03:00.1]} 3... Bb4 {[%clk 0:02:57.8]}
4. e5 {[%clk 0:03:00.2]} 4... c5 {[%clk 0:02:58.1]} 5. a3 {[%clk 0:03:00.9]}
5... Bxc3+ {[%clk 0:02:58.4]} 6. bxc3 {[%clk 0:03:01.8]} 6... Nc6 {[%clk
0:02:58.6]} 7. Nf3 {[%clk 0:03:00.1]} 7... Bd7 {[%clk 0:02:56.3]} 8. h4 {[%clk
0:02:58.9]} 8... Nge7 {[%clk 0:02:54.5]} 9. h5 {[%clk 0:02:59.5]} 9... h6 {[%clk
0:02:55]} 10. Bd3 {[%clk 0:02:59.6]} 10... Qa5 {[%clk 0:02:55.1]} 11. Bd2 {[%clk
0:02:59.8]} 11... c4 {[%clk 0:02:55.5]} 12. Be2 {[%clk 0:02:59.7]} 12... O-O-O
{[%clk 0:02:56.2]} 13. O-O {[%clk 0:02:57]} 13... f6 {[%clk 0:02:56.6]} 14. Re1
{[%clk 0:02:47.7]} 14... fxe5 {[%clk 0:02:51.2]} 15. dxe5 {[%clk 0:02:48.6]}
15... g5 {[%clk 0:02:44.5]} 16. hxg6 {[%clk 0:02:43.8]} 16... Nxg6 {[%clk
0:02:44.3]} 17. Nd4 {[%clk 0:02:44.6]} 17... Ngxe5 {[%clk 0:02:32.4]} 18. Bf1
{[%clk 0:02:44.3]} 18... Rhg8 {[%clk 0:02:21.9]} 19. Bf4 {[%clk 0:02:43.3]}
19... Nxd4 {[%clk 0:02:07]} 20. Rxe5 {[%clk 0:02:24.4]} 20... Qxc3 {[%clk
0:01:55.6]} 21. Re3 {[%clk 0:02:24.2]} 21... Ne2+ {[%clk 0:01:07.5]} 22. Bxe2
{[%clk 0:02:14.1]} 22... Qf6 {[%clk 0:01:03.7]} 23. Be5 {[%clk 0:02:11.9]} 23...
Qg5 {[%clk 0:01:03.9]} 24. g3 {[%clk 0:02:10]} 24... d4 {[%clk 0:00:58.1]} 25.
Qxd4 {[%clk 0:02:05.9]} 25... Bc6 {[%clk 0:00:58.2]} 26. Qxa7 {[%clk 0:02:05.3]}
26... Rd2 {[%clk 0:00:50.1]} 27. Rd1 {[%clk 0:01:56.6]} 27... Rxd1+ {[%clk
0:00:44.9]} 28. Bxd1 {[%clk 0:01:57.5]} 28... Rd8 {[%clk 0:00:38.3]} 29. Qb8+
{[%clk 0:01:56.9]} 29... Kd7 {[%clk 0:00:37.3]} 30. Qd6+ {[%clk 0:01:57.6]}
30... Ke8 {[%clk 0:00:37.8]} 31. Qxe6+ {[%clk 0:01:57.9]} 31... Kf8 {[%clk
0:00:37.2]} 32. Bf3 {[%clk 0:01:56.7]} 32... Bxf3 {[%clk 0:00:13.4]} 33. Rxf3+
{[%clk 0:01:57.6]} 33... Qf5 {[%clk 0:00:13.8]} 34. Rxf5# {[%clk 0:01:57.7]} 1-0

[Event "Early-Titled-Tuesday-Blitz-September-05-2023"]
[Site "Chess.com"]
[Date "2023.09.05"]
[Round "8"]
[White "Casper"]
[Black "Aygehovit1992"]
[Result "1-0"]
[WhiteElo "2455"]
[BlackElo "2692"]
[TimeControl "180+1"]
[EndTime "9:24:42 PDT"]
[Termination "Casper won by resignation"]

1. e4 {[%clk 0:03:00.9]} 1... c5 {[%clk 0:03:00.1]} 2. d4 {[%clk 0:03:01.1]}
2... cxd4 {[%clk 0:02:59.9]} 3. Qxd4 {[%clk 0:03:02]} 3... Nc6 {[%clk
0:02:59.7]} 4. Qe3 {[%clk 0:03:02.7]} 4... Nf6 {[%clk 0:02:57.8]} 5. Nc3 {[%clk
0:03:03.3]} 5... e6 {[%clk 0:02:57.1]} 6. Bd2 {[%clk 0:03:03.4]} 6... d5 {[%clk
0:02:53.4]} 7. exd5 {[%clk 0:03:03.3]} 7... Nxd5 {[%clk 0:02:53.4]} 8. Nxd5
{[%clk 0:03:04.2]} 8... Qxd5 {[%clk 0:02:53.5]} 9. Qb3 {[%clk 0:03:04.9]} 9...
Qxb3 {[%clk 0:02:50.1]} 10. axb3 {[%clk 0:03:04.9]} 10... e5 {[%clk 0:02:50.8]}
11. Bb5 {[%clk 0:03:03.5]} 11... Bf5 {[%clk 0:02:49.2]} 12. c3 {[%clk
0:02:58.5]} 12... Bc5 {[%clk 0:02:45.3]} 13. Nf3 {[%clk 0:02:52.7]} 13... O-O
{[%clk 0:02:40.6]} 14. O-O {[%clk 0:02:47.1]} 14... Rfd8 {[%clk 0:02:35.2]} 15.
b4 {[%clk 0:02:25.8]} 15... Bb6 {[%clk 0:02:33.9]} 16. Be3 {[%clk 0:02:12.9]}
16... Bxe3 {[%clk 0:02:18.4]} 17. fxe3 {[%clk 0:02:13.8]} 17... Bd3 {[%clk
0:02:18.8]} 18. Bxd3 {[%clk 0:02:06.6]} 18... Rxd3 {[%clk 0:02:19.7]} 19. b5
{[%clk 0:02:01]} 19... Nd8 {[%clk 0:02:17]} 20. Nxe5 {[%clk 0:01:42.8]} 20...
Rxe3 {[%clk 0:02:17]} 21. Nd7 {[%clk 0:01:42.2]} 21... Re6 {[%clk 0:01:55.7]}
22. c4 {[%clk 0:01:15.9]} 22... f6 {[%clk 0:01:21.5]} 23. c5 {[%clk 0:01:07.3]}
23... Kf7 {[%clk 0:01:21]} 24. Nb6 {[%clk 0:01:03.7]} 24... Rb8 {[%clk
0:01:13.6]} 25. Rxa7 {[%clk 0:01:03.7]} 25... Kg6 {[%clk 0:01:10.6]} 26. Nd7
{[%clk 0:00:59.1]} 26... Rc8 {[%clk 0:01:10.1]} 27. Nf8+ {[%clk 0:00:59.4]}
27... Kg5 {[%clk 0:01:09]} 28. Nxe6+ {[%clk 0:01:00.3]} 28... Nxe6 {[%clk
0:01:09]} 29. b4 {[%clk 0:00:57.4]} 29... h5 {[%clk 0:01:09.2]} 30. Rxb7 {[%clk
0:00:57.2]} 30... g6 {[%clk 0:01:09.6]} 31. b6 {[%clk 0:00:56.5]} 31... h4
{[%clk 0:01:08.5]} 32. Re7 {[%clk 0:00:55.4]} 1-0